Cogmind - Beta 11.1 @@@ ROGUE MODE // 2022.11.02 @ 21:38:45 Player: Gucio Result: Self-destructed Performance ------------- Evolutions (1) 500 Regions Visited (3) 600 Robots Destroyed (19) 95 Value Destroyed (176) 176 Prototype IDs (0) 0 Alien Tech Used (0) 0 Bonus (0) 0 TOTAL SCORE: 1371 Bonus ------- None Cogmind --------- Core Integrity 270/400 Matter 300/300 Energy 250/250 System Corruption 0% Temperature Cool (6) Movement Flying (280) Ox3 Location -9/Materials Parts ------- > --- POWER (1) -------- Ion Engine > --- PROPULSION (3) --- Flight Unit > --- UTILITY (3) ------ Medium Storage Unit Structural Scanner > --- WEAPON (2) ------- (None) > --- INVENTORY (10) --- Light Ion Engine Light Ion Engine Large Storage Unit Experimental Sensor Array Improved Terrain Scanner Assault Rifle Light Assault Rifle Peak State ------------ > --- POWER ------------ Ion Engine > --- PROPULSION ------- Flight Unit Flight Unit Flight Unit > --- UTILITY ---------- Large Storage Unit Structural Scanner Seismic Detector > --- WEAPON ----------- Medium Laser Medium Laser > --- INVENTORY -------- Light Ion Engine Light Ion Engine Light Ion Engine Aluminum Leg Aluminum Leg Hover Unit Medium Storage Unit Experimental Sensor Array Improved Terrain Scanner Assault Rifle Light Assault Rifle [Rating: 11] Favorites ----------- Power Ion Engine Engine Ion Engine Propulsion Hover Unit Leg Aluminum Leg Hover Unit Hover Unit Flight Unit Flight Unit Utility Seismic Detector Device Seismic Detector Storage Medium Storage Unit Weapon Medium Laser Energy Gun Medium Laser Ballistic Gun Assault Rifle Build | -11 -10 -10 -9 ------- Run | Scr Mat Min Mat Slots Evolved 2 | . . . 2 Power . | . . . . Propulsion 1 | . . . 1 Utility 1 | . . . 1 Weapon . | . . . . Parts Attached 19 | 8 2 4 5 Power 2 | 1 . 1 . Engine 2 | 1 . 1 . Core . | . . . . Reactor . | . . . . Propulsion 7 | 2 . 2 3 Treads . | . . . . Leg 2 | 2 . . . Wheel . | . . . . Hover 2 | . . 2 . Flight 3 | . . . 3 Utility 6 | 2 1 1 2 Device 2 | 1 . . 1 Storage 4 | 1 1 1 1 Processor . | . . . . Hackware . | . . . . Protection . | . . . . Artifact . | . . . . Weapon 4 | 3 1 . . Energy Gun 3 | 2 1 . . Energy Cannon . | . . . . Ballistic Gun 1 | 1 . . . Ballistic Cannon . | . . . . Launcher . | . . . . Special Weapon . | . . . . Impact Weapon . | . . . . Slashing Weapon . | . . . . Piercing Weapon . | . . . . Special Melee Weapon . | . . . . Unidentified Prototypes . | . . . . Parts Lost 7 | . . 1 6 Power 1 | . . 1 . Propulsion 3 | . . . 3 Utility 1 | . . . 1 Weapon 2 | . . . 2 Highest Loss Streak 4 | . . 1 4 To Critical Strikes . | . . . . Average Slot Usage (%) 98 | . 100 100 87 Engine 13 | . 14 14 11 Leg 9 | . 28 . . Hover 14 | . . 27 7 Flight 3 | . . . 19 Device 14 | . 14 14 17 Storage 13 | . 14 14 11 Energy Gun 26 | . 28 28 20 Naked Turns . | . . . . Heaviest Build 31 | 14 20 30 31 Greatest Support 20 | 20 20 20 12 Greatest Overweight (x) 5 | 4 . 2 5 Average Overweight (x) . | . . 1 1 Largest Inventory Capacity 15 | 8 10 15 15 Average Capacity 10 | 7 9 12 12 Most Carried 13 | 6 10 13 13 Average Carried 8 | 3 8 11 8 Final Capacity 15 | 8 10 15 10 Final Carried 13 | 6 10 13 7 Class Distribution -------------------- 96% | Mutant 3% | Scavenger-Mutant Dominant Class ---------------- Mutant | -10/Materials Mutant | -10/Mines Mutant | -9/Materials Resources | -11 -10 -10 -9 ----------- Run | Scr Mat Min Mat Matter Collected 390 | 280 20 40 50 Remotely . | . . . . Salvage Created 339 | 109 106 43 81 Parts 44 | 13 14 7 10 Haulers Intercepted . | . . . . Recyclers Shooed . | . . . . Parts Field Recycled . | . . . . Retrieved Matter . | . . . . Parts Self-Destructed . | . . . . Prevented . | . . . . Kills | -11 -10 -10 -9 ------- Run | Scr Mat Min Mat Combat Hostiles Destroyed 12 | . 6 3 3 Guns 12 | . 6 3 3 Classes Destroyed 4 | 1 2 . 1 Builder 1 | . . . 1 Tunneler 5 | 5 . . . Watcher 1 | . 1 . . Swarmer 12 | . 6 3 3 Best Kill Streak 3 | 1 3 3 2 Combat Bots Only 3 | . 3 3 2 Max Kills in Single Turn 2 | 1 1 2 1 Gunslinging . | . . . . Exploded . | . . . . Melee . | . . . . Uniques/NPCs Destroyed . | . . . . Combat | -11 -10 -10 -9 -------- Run | Scr Mat Min Mat Damage Taken 767 | . 335 60 372 Core 182 | . 42 10 130 Absorbed by Shields . | . . . . Core Remaining (%) 89 | 100 . 79 . Volleys Fired 45 | 12 20 3 10 Largest 2 | 2 2 2 2 Hottest 100 | 90 100 100 100 Shots Fired 89 | 23 40 6 20 Gun 89 | 23 40 6 20 Cannon . | . . . . Launcher . | . . . . Special . | . . . . Kinetic . | . . . . Thermal 89 | 23 40 6 20 Explosive . | . . . . Electromagnetic . | . . . . Robot Hit Streak 6 | 2 4 2 6 Robot Miss Streak 3 | 2 3 2 3 Penetration Max . | . . . . Secondary Targets 1 | . 1 . . Max Gunslinging Chain 1 | . 1 . . Shots Hit Robots 47 | 10 22 3 12 Core Hits 21 | 5 8 3 5 Critical Kills . | . . . . Critical Parts Destroyed . | . . . . Critical Strikes 5 | 1 1 1 2 Burn 5 | 1 1 1 2 Melee Attacks . | . . . . Impact . | . . . . Slashing . | . . . . Piercing . | . . . . Sneak Attacks . | . . . . Combat Hostiles . | . . . . Follow-up Attacks . | . . . . Damage Inflicted 605 | 115 289 53 148 Guns 601 | 115 289 49 148 Cannons . | . . . . Explosions . | . . . . Melee . | . . . . Ramming 4 | . . 4 . Kinetic . | . . . . Thermal 601 | 115 289 49 148 Explosive . | . . . . Electromagnetic . | . . . . Impact . | . . . . Slashing . | . . . . Piercing . | . . . . Highest Corruption . | . . . . Average Corruption . | . . . . Corruption Purged . | . . . . Corruption Blocked . | . . . . Overload Shots . | . . . . Overflow Damage . | . . . . Projectiles . | . . . . Explosions . | . . . . Melee . | . . . . Knockbacks . | . . . . Impact . | . . . . Kinetic . | . . . . Secondary . | . . . . Self-Inflicted Damage 2 | . . 2 . Shots . | . . . . Rammed 1 | . . 1 . Targets Rammed 1 | . . 1 . Kicked . | . . . . Crushed . | . . . . Highest Temperature 240 | 90 196 110 240 Average Temperature 69 | 31 75 57 100 Received Heat Transfer 141 | . . . 141 Effects 1 | . . . 1 Energy Bleed 1 | . . . 1 Siege Activations . | . . . . Robots Corrupted . | . . . . Combat Hostiles . | . . . . Parts Fried . | . . . . Impact Corruptions . | . . . . Robots Melted . | . . . . Combat Hostiles . | . . . . Parts Melted 6 | . 3 1 2 Heat Transferred 2099 | 360 925 222 592 Parts Sabotaged . | . . . . Parts Stolen . | . . . . Parts Stripped . | . . . . Power Chain Reactions . | . . . . Missiles Intercepted . | . . . . Alert | -11 -10 -10 -9 ------- Run | Scr Mat Min Mat Peak Influence 146 | 25 146 60 100 Initial 56 | . 16 56 . Average 41 | 12 45 46 53 Maximum Alert Level . | . . . . Low Security (%) 100 | 100 100 100 100 Level 1 . | . . . . Level 2 . | . . . . Level 3 . | . . . . Level 4 . | . . . . Level 5 . | . . . . High Security . | . . . . Max Security . | . . . . Squads Dispatched . | . . . . Investigation . | . . . . Extermination . | . . . . Reinforcement . | . . . . Assault . | . . . . Garrison . | . . . . Intercept . | . . . . Searches Triggered . | . . . . Construction Impeded . | . . . . Haulers Reinforced . | . . . . Active Scanning Responses . | . . . . Cargo Convoy Interrupts . | . . . . Stealth | -11 -10 -10 -9 --------- Run | Scr Mat Min Mat Distress Signals 1 | . . . 1 Communications Jammed . | . . . . Distress Signals . | . . . . Times Spotted 29 | . 13 3 13 Peak Tracking Total 6 | . 3 3 6 Tactical Retreats 2 | . 1 . 1 Traps | -11 -10 -10 -9 ------- Run | Scr Mat Min Mat Traps Triggered . | . . . . Indirectly . | . . . . Trap Hack Attempts . | . . . . Triggered . | . . . . Disarmed . | . . . . Reprogrammed . | . . . . Reused . | . . . . Traps Extracted . | . . . . Installed . | . . . . Triggered . | . . . . Machines | -11 -10 -10 -9 ---------- Run | Scr Mat Min Mat Machines Disabled 1 | . 1 . . Max in Single Turn 1 | . 1 . . Machines Sabotaged . | . . . . Garrisons Compromised . | . . . . Overloaded Fab Kills . | . . . . Hacking | -11 -10 -10 -9 --------- Run | Scr Mat Min Mat Machines Accessed 4 | . 3 . 1 Terminals 4 | . 3 . 1 Fabricators . | . . . . Repair Stations . | . . . . Recycling Units . | . . . . Scanalyzers . | . . . . Garrison Access . | . . . . Total Hacks 10 | . 7 . 3 Successful 5 | . 5 . . Failed 5 | . 2 . 3 Catastrophic . | . . . . Database Lockouts . | . . . . Manual 1 | . 1 . . Terminals 10 | . 7 . 3 Fabricators . | . . . . Repair Stations . | . . . . Recycling Units . | . . . . Scanalyzers . | . . . . Garrison Access . | . . . . Terminal Hacks 5 | . 5 . . Emergency Access Points 1 | . 1 . . Dispatch Records 2 | . 2 . . Hauler Manifests 1 | . 1 . . Zone Layout 1 | . 1 . . Fabricator Hacks . | . . . . Repair Station Hacks . | . . . . Recycling Unit Hacks . | . . . . Scanalyzer . | . . . . Garrison Access Hacks . | . . . . Unauthorized Hacks . | . . . . Terminals . | . . . . Fabricators . | . . . . Repair Stations . | . . . . Recycling Units . | . . . . Scanalyzers . | . . . . Garrison Access . | . . . . Data Cores Recovered . | . . . . Used . | . . . . Hacking Detections 2 | . 1 . 1 Full Trace Events . | . . . . Feedback Events . | . . . . Feedback Blocked . | . . . . Robot Schematics Acquired . | . . . . Robots Built . | . . . . Authchips . | . . . . Time . | . . . . Total Robot Build Rating . | . . . . Part Schematics Acquired . | . . . . Parts Built . | . . . . Authchips . | . . . . Time . | . . . . Total Part Build Rating . | . . . . Parts Repaired . | . . . . Time . | . . . . Parts Recycled . | . . . . Recycled Matter . | . . . . Retrieved Matter . | . . . . Retrieved Components . | . . . . Parts Scanalyzed . | . . . . Part Schematics Acquired . | . . . . Parts Damaged . | . . . . Bothacking | -11 -10 -10 -9 ------------ Run | Scr Mat Min Mat Used RIF Installer . | . . . . Robots Hacked . | . . . . Non-combat . | . . . . Combat . | . . . . Robot Hacks Applied . | . . . . Relay Couplers Released . | . . . . Fabnet Peak Effective % . | . . . . Robots Rewired . | . . . . Allies Hacked . | . . . . Hacks Repelled . | . . . . Allies | -11 -10 -10 -9 -------- Run | Scr Mat Min Mat Total Allies . | . . . . Largest Group . | . . . . Highest-Rated Group . | . . . . Highest-Rated Ally . | . . . . Total Orders . | . . . . Ally Attacks . | . . . . Total Damage . | . . . . Kills . | . . . . Allies Corrupted . | . . . . Allies Melted . | . . . . Intel | -11 -10 -10 -9 ------- Run | Scr Mat Min Mat Robot Analysis Total . | . . . . Derelict Logs Recovered 2 | . . 2 . Drone Launches . | . . . . Drone Recoveries . | . . . . Exploration | -11 -10 -10 -9 ------------- Run | Scr Mat Min Mat Turns Passed 2196 | 372 626 891 307 Spaces Moved 1444 | 238 403 613 190 Core 36 | 36 . . . Treads . | . . . . Legs 606 | 202 403 1 . Wheels . | . . . . Hover 656 | . . 612 44 Flight 146 | . . . 146 Fastest Speed 50 | 50 120 116 114 Average Speed 132 | 134 120 138 137 Slowest Speed 360 | 250 120 176 360 Overloaded Moves . | . . . . Propulsion Burnouts . | . . . . Robots Hopped . | . . . . Cave-ins Triggered . | . . . . Exploration Rate (%) 41 | 10 45 95 15 Regions Visited 3 Branch Regions 1 Pre-discovered Areas 1 | . . 1 . Known Exits Taken . | . . . . Unknown Exits Taken 3 | 1 1 1 . Scrap Searched 1 | . . 1 . Spaces Dug . | . . . . Terrain Destroyed . | . . . . Melee . | . . . . Projectile . | . . . . AOE . | . . . . Terrain Rammed . | . . . . Walls Destroyed . | . . . . Machines Disabled . | . . . . Actions | -11 -10 -10 -9 --------- Run | Scr Mat Min Mat Total 1635 | 264 507 647 217 Wait 100 | . 74 21 5 Move 1441 | 237 402 612 190 Hop . | . . . . Pick Up 20 | 7 6 5 2 Fast Attach 6 | 6 . . . Attach 5 | 1 . 1 3 Detach . | . . . . Swap 8 | 1 2 3 2 Drop 9 | . 3 1 5 Fire 45 | 12 20 3 10 Melee . | . . . . Ram 1 | . . 1 . Kick . | . . . . Crush . | . . . . Escape Stasis . | . . . . Rewire . | . . . . Trap . | . . . . Miscellaneous . | . . . . Route ------- -11/Scrapyard -10/Materials -10/Mines (discovered 2 exits: *Mat x2) -9/Materials (discovered 3 exits: Mat x2 / Min) History --------- Turn | Location | Event 30 | -11/Scrapyard | Discovered new exit (range 16) 373 | -11/Scrapyard | Entered Materials 374 | -10/Materials | Build established: Mutant 886 | -10/Materials | Discovered new exit (range 14) 999 | -10/Materials | Entered Mines 1087 | -10/Mines | Learned location of Zion (-7) 1157 | -10/Mines | Found a damaged Exp. Sensor Array with a note attached 1160 | -10/Mines | Found Prototype Device 1394 | -10/Mines | Learned 2 Materials zone layouts 1745 | -10/Mines | Discovered new exit (range 9) 1867 | -10/Mines | Discovered new exit (range 9) 1890 | -10/Mines | Entered Materials 1890 | -9/Materials | Evolved 2 slots: Propulsion x1, Utility x1 1891 | -9/Materials | Identified exit to Materials 1891 | -9/Materials | Identified exit to Mines 2197 | -9/Materials | Self-destructed Last Messages --------------- 02012_ Dropped Aluminum Leg. 02012_ Dropped Med. Storage Unit. 02013_ Dropped Aluminum Leg. 02013_ Dropped Hover Unit. 02014_ Acquired 30 matter. 02019_ Acquired Med. Storage Unit. 02026_ Acquired 10 matter. 02035_ K-01 Serf collects debris. 02038_ K-01 Serf cleans the Fusion Modulator. 02043_ K-01 Serf collects debris. 02060_ R-06 Scavenger collects Terrain Scanner. 02069_ Connecting with Terminal... 02069_ Current location identified: Materials 02069_ Connecting with Terminal... 02085_ Seismic Detector destroyed. 02153_ K-01 Serf cleans the Fusion Modulator. 02170_ Med. Laser destroyed. 02174_ Flight Unit destroyed. 02184_ Med. Laser destroyed. 02186_ Flight Unit destroyed. Map ----- +----------------------------------------------------+ | ???????????? # ##??????????????????????????????? | | ???????????? # ##??????????????????????????????? | | ???????????? + ##??????????????????????????????? | | ???????????? # #########???????????????????????? | | ###### ???? # #########???????????????????????? | | ############## # ##???????????????????????? | | # T ######## # ##???????????????????????? | | # # # # """##???????????????????????? | | + """ # # # """##???????????????????????? | | # """ + + + """##???????????????????????? | | # """ # """ # # ##???????????????????????? | | # # """ # #########???????????????????????? | | # # """ # ##### ???????????????????????? | | ############## ##??????????????????????????????? | | + | # ##??????????????????????????????? | | ####### # ##??????????????????????????????? | | ####### """ + ##??????????????????????????????? | | ####### """ # ##??????????????????????????????? | | ####### """ # ##??????????????????????????????? | | %*% / # ################????????????????? | | ############## ################????????????????? | | ############## g ### ##??????????????? | | ????????????## g ### """ ##??????????????? | | ????????????## ### """ ##??????????????? | | ????????????## # """ ##??????????????? | | ????????????## /@ ##??????????????? | | ????????????## # "" ##??????????????? | | ????????????########### # S"" ##??????????????? | | ????????????########### # Y "" ##??????????????? | | ####?????????????????## # ##??????????????? | | ####?????????????????## #### ######??????????????? | | ##?????????????????## ###########??????????????? | | ##?????????????????## ##?####??????????????????? | | ###????????????????? ???????????????????????? | | ####?????????????????? ????????????????????????? | | ######???????????????? ????????????????????????? | | ####### ?????????????? ????????????????????????? | | ###+### ????????????? ???????????????????????? | | # ?????????????#### ???????????????????????? | | # ?????????????#### ???????????????????????? | | # ?????????????????????????????????????????? | | """ # ?????????????????????????????????????????? | | """"" # ?????????????????????????????????????????? | | """"" ##?????????????????????????????????????????? | | """"" ##?????????????????????????????????????????? | | """ ##?????????????????????????????????????????? | | ##?????????????????????????????????????????? | | ########?????????????????????????????????????????? | | ########?????????????????????????????????????????? | | ?????????????????????????????????????????????????? | +----------------------------------------------------+ Best States ------------- Heat Dissipation 28 Energy Generation 10 Energy Capacity 250 Matter Stores 300 Matter Capacity 300 Sight Range 16 Terrain Scan Density 10 Evasion (%) 55 Item Schematics ----------------- None Robot Schematics ------------------ None Fabricated ------------ Nothing Alien Tech Used ----------------- None Achievements -------------- None Challenges ------------ None Game ------ Seed ElectronImprinterSaw Manual? 0 Play Time 00:24:16 Cumulative 7.3 hours Start 2022.11.01 @ 20:54:15 End 2022.11.02 @ 21:38:45 Sessions 5 Manual Loads 0 Difficulty Rogue Special Mode None Game No. 12 Rogue 8 Adventurer 4 Explorer 0 Win Type - Total 0 Types 0/0/0/0/0/0/0/0/0 Lore% 8 Gallery% 10 Achievement% 10 Wizard Run 0 Options --------- ASCII 0 Keyboard 1 Movement Arrows Keybinds 0 Fullscreen 2 Font 24/Smallcaps Map View 76x50 Tactical HUD 1 Map Filters NONE Filters NONE Steam 1 RUN: 56c22c15-44e2-4c97-bd7d-f019949dba16